[Event "Early-Titled-Tuesday-Blitz-May-28-2024"]
[Site "Chess.com"]
[Date "2024.05.28"]
[Round "2"]
[White "manmanlai1"]
[Black "NewBornNow"]
[Result "0-1"]
[WhiteElo "2564"]
[BlackElo "2806"]
[TimeControl "180+1"]
[EndTime "8:18:38 PDT"]
[Termination "NewBornNow won by resignation"]

1. e4 {[%clk 0:03:00.9]} 1... c5 {[%clk 0:02:57.8]} 2. Nf3 {[%clk 0:02:59.1]}
2... d6 {[%clk 0:02:58.1]} 3. d4 {[%clk 0:02:56.3]} 3... cxd4 {[%clk 0:02:58.6]}
4. Nxd4 {[%clk 0:02:57.1]} 4... Nf6 {[%clk 0:02:59]} 5. Nc3 {[%clk 0:02:57.5]}
5... a6 {[%clk 0:02:59.4]} 6. Bd3 {[%clk 0:02:38.2]} 6... e5 {[%clk 0:02:56.2]}
7. Nde2 {[%clk 0:02:36.2]} 7... Be7 {[%clk 0:02:56.4]} 8. O-O {[%clk 0:02:34.7]}
8... Nbd7 {[%clk 0:02:56.4]} 9. f4 {[%clk 0:02:33.8]} 9... Nc5 {[%clk
0:02:56.7]} 10. Kh1 {[%clk 0:02:33.4]} 10... O-O {[%clk 0:02:56.3]} 11. Ng3
{[%clk 0:02:31.5]} 11... b5 {[%clk 0:02:48.7]} 12. fxe5 {[%clk 0:02:21.4]} 12...
dxe5 {[%clk 0:02:48.4]} 13. Qf3 {[%clk 0:02:17.2]} 13... Bg4 {[%clk 0:02:41.9]}
14. Qe3 {[%clk 0:02:12.1]} 14... b4 {[%clk 0:02:31.5]} 15. Nce2 {[%clk
0:02:05.4]} 15... Nxd3 {[%clk 0:02:23.1]} 16. cxd3 {[%clk 0:02:03.5]} 16... Rc8
{[%clk 0:02:17.5]} 17. h3 {[%clk 0:02:00.9]} 17... Be6 {[%clk 0:02:14.5]} 18.
Nf5 {[%clk 0:01:55.8]} 18... Bxf5 {[%clk 0:02:12.9]} 19. Rxf5 {[%clk 0:01:55.5]}
19... Nd7 {[%clk 0:02:12.5]} 20. Qg3 {[%clk 0:01:30.8]} 20... g6 {[%clk
0:02:12]} 21. Bh6 {[%clk 0:01:30]} 21... Rc2 {[%clk 0:01:54]} 22. Bxf8 {[%clk
0:01:19.2]} 22... Kxf8 {[%clk 0:01:53.1]} 23. Rf2 {[%clk 0:01:14.9]} 23... Bh4
{[%clk 0:01:50.3]} 24. Qf3 {[%clk 0:01:08.7]} 24... Bxf2 {[%clk 0:01:49.7]} 25.
Qxf2 {[%clk 0:01:09.6]} 25... Rxb2 {[%clk 0:01:48.8]} 26. Rf1 {[%clk 0:01:02.5]}
26... Qe7 {[%clk 0:01:39.5]} 27. Qe3 {[%clk 0:00:58.9]} 27... Rxa2 {[%clk
0:01:35.6]} 28. d4 {[%clk 0:00:56.7]} 28... Ra3 {[%clk 0:01:25]} 29. Qh6+ {[%clk
0:00:53.5]} 29... Kg8 {[%clk 0:01:24.9]} 30. dxe5 {[%clk 0:00:24.4]} 30... Nxe5
{[%clk 0:01:22.3]} 31. Nf4 {[%clk 0:00:22.3]} 31... Nd7 {[%clk 0:01:10.5]} 32.
Nd5 {[%clk 0:00:17.4]} 32... Qxe4 {[%clk 0:01:09.2]} 33. Rc1 {[%clk 0:00:12.2]}
33... Rxh3+ {[%clk 0:00:59]} 34. Qxh3 {[%clk 0:00:11.1]} 34... Qxd5 {[%clk
0:00:59.1]} 35. Qh6 {[%clk 0:00:11.2]} 35... Nc5 {[%clk 0:00:55.2]} 36. Qe3
{[%clk 0:00:08]} 36... Ne6 {[%clk 0:00:51.4]} 37. Qb6 {[%clk 0:00:07.7]} 37...
Qd2 {[%clk 0:00:41.2]} 38. Rf1 {[%clk 0:00:08.4]} 38... Qd3 {[%clk 0:00:36.1]}
39. Kg1 {[%clk 0:00:07.4]} 39... Qd4+ {[%clk 0:00:35.7]} 40. Qxd4 {[%clk
0:00:07.4]} 40... Nxd4 {[%clk 0:00:36]} 41. Rf4 {[%clk 0:00:08.1]} 41... Ne2+
{[%clk 0:00:35.3]} 0-1

[Event "Early-Titled-Tuesday-Blitz-May-28-2024"]
[Site "Chess.com"]
[Date "2024.05.28"]
[Round "2"]
[White "MathiasWomacka"]
[Black "KVAIDAN"]
[Result "1/2-1/2"]
[WhiteElo "2528"]
[BlackElo "2325"]
[TimeControl "180+1"]
[EndTime "8:18:41 PDT"]
[Termination "Game drawn by stalemate"]

1. e4 {[%clk 0:03:00.9]} 1... e5 {[%clk 0:02:55.6]} 2. Nf3 {[%clk 0:02:58.2]}
2... d5 {[%clk 0:02:55.9]} 3. exd5 {[%clk 0:02:56]} 3... e4 {[%clk 0:02:55.7]}
4. Qe2 {[%clk 0:02:56]} 4... Nf6 {[%clk 0:02:55.4]} 5. d3 {[%clk 0:02:56]} 5...
Bb4+ {[%clk 0:02:54.2]} 6. c3 {[%clk 0:02:51.5]} 6... O-O {[%clk 0:02:52.1]} 7.
dxe4 {[%clk 0:02:51.5]} 7... Bc5 {[%clk 0:02:52]} 8. Bg5 {[%clk 0:02:48.9]} 8...
c6 {[%clk 0:02:52]} 9. Nbd2 {[%clk 0:02:28]} 9... Re8 {[%clk 0:02:52.9]} 10.
dxc6 {[%clk 0:02:19.9]} 10... Nxc6 {[%clk 0:02:48.3]} 11. O-O-O {[%clk
0:02:20.4]} 11... Qe7 {[%clk 0:02:39]} 12. Qb5 {[%clk 0:02:04.6]} 12... a6
{[%clk 0:02:33.4]} 13. Bxf6 {[%clk 0:02:01.7]} 13... axb5 {[%clk 0:02:29.5]} 14.
Bxe7 {[%clk 0:02:01]} 14... Rxe7 {[%clk 0:02:29.7]} 15. Bxb5 {[%clk 0:01:57.1]}
15... Bxf2 {[%clk 0:02:26.5]} 16. Bc4 {[%clk 0:01:48.5]} 16... Be6 {[%clk
0:02:16.7]} 17. a3 {[%clk 0:01:41.9]} 17... Bxc4 {[%clk 0:02:12.5]} 18. Nxc4
{[%clk 0:01:42.8]} 18... Rxe4 {[%clk 0:02:12.9]} 19. Nd6 {[%clk 0:01:42.6]}
19... Re2 {[%clk 0:02:07.3]} 20. Nxb7 {[%clk 0:01:34.6]} 20... Rb8 {[%clk
0:02:07.3]} 21. Rd7 {[%clk 0:01:30.9]} 21... g5 {[%clk 0:02:01.3]} 22. Rhd1
{[%clk 0:00:58]} 22... g4 {[%clk 0:01:41.3]} 23. Nd4 {[%clk 0:00:57.8]} 23...
Nxd4 {[%clk 0:01:35.1]} 24. cxd4 {[%clk 0:00:58.7]} 24... Be3+ {[%clk
0:01:34.9]} 25. Kb1 {[%clk 0:00:57.2]} 25... Rxg2 {[%clk 0:01:35.2]} 26. d5
{[%clk 0:00:44.3]} 26... Rxh2 {[%clk 0:01:28.5]} 27. d6 {[%clk 0:00:44.3]} 27...
g3 {[%clk 0:01:23.4]} 28. Rc7 {[%clk 0:00:39.5]} 28... Bf4 {[%clk 0:01:16.1]}
29. Rc2 {[%clk 0:00:34.8]} 29... Rxb7 {[%clk 0:01:06.7]} 30. d7 {[%clk
0:00:31.1]} 30... Bg5 {[%clk 0:01:06.2]} 31. d8=Q+ {[%clk 0:00:27.1]} 31... Bxd8
{[%clk 0:01:06.4]} 32. Rxd8+ {[%clk 0:00:27.5]} 32... Kg7 {[%clk 0:01:06.9]} 33.
Rd3 {[%clk 0:00:28]} 33... g2 {[%clk 0:01:04]} 34. Rg3+ {[%clk 0:00:27.3]} 34...
Kf6 {[%clk 0:01:03.6]} 35. Rcxg2 {[%clk 0:00:27.1]} 35... Rxg2 {[%clk 0:01:04]}
36. Rxg2 {[%clk 0:00:27.1]} 36... h5 {[%clk 0:01:04.9]} 37. b4 {[%clk 0:00:26]}
37... h4 {[%clk 0:01:04.5]} 38. Kb2 {[%clk 0:00:25.5]} 38... Kf5 {[%clk
0:01:05]} 39. Kb3 {[%clk 0:00:23.9]} 39... Kf4 {[%clk 0:01:05]} 40. Rg7 {[%clk
0:00:16.9]} 40... h3 {[%clk 0:00:59.2]} 41. Rh7 {[%clk 0:00:15.9]} 41... Kg3
{[%clk 0:00:59.5]} 42. Rg7+ {[%clk 0:00:16.1]} 42... Kf3 {[%clk 0:00:58.7]} 43.
Rh7 {[%clk 0:00:16.6]} 43... Kg2 {[%clk 0:00:59.2]} 44. Rg7+ {[%clk 0:00:16.9]}
44... Kh1 {[%clk 0:00:59]} 45. a4 {[%clk 0:00:15.9]} 45... h2 {[%clk 0:00:57.3]}
46. b5 {[%clk 0:00:16.2]} 46... Rb6 {[%clk 0:00:57]} 47. Rxf7 {[%clk 0:00:13.8]}
47... Rh6 {[%clk 0:00:57.3]} 48. Rg7 {[%clk 0:00:13.3]} 48... Rh3+ {[%clk
0:00:55]} 49. Kb4 {[%clk 0:00:13.1]} 49... Rh4+ {[%clk 0:00:55.2]} 50. Kc5
{[%clk 0:00:12.3]} 50... Rxa4 {[%clk 0:00:53.6]} 51. b6 {[%clk 0:00:12.7]} 51...
Ra5+ {[%clk 0:00:53.4]} 52. Kc6 {[%clk 0:00:12.5]} 52... Rc5+ {[%clk 0:00:53.8]}
53. Kxc5 {[%clk 0:00:11.1]} 1/2-1/2

[Event "Early-Titled-Tuesday-Blitz-May-28-2024"]
[Site "Chess.com"]
[Date "2024.05.28"]
[Round "2"]
[White "artin10862"]
[Black "jk13"]
[Result "1/2-1/2"]
[WhiteElo "3095"]
[BlackElo "2651"]
[TimeControl "180+1"]
[EndTime "8:18:42 PDT"]
[Termination "Game drawn by repetition"]

1. Nf3 {[%clk 0:02:52.6]} 1... Nf6 {[%clk 0:02:58.7]} 2. g3 {[%clk 0:02:52]}
2... e6 {[%clk 0:02:59.1]} 3. Bg2 {[%clk 0:02:52]} 3... d5 {[%clk 0:02:59.8]} 4.
O-O {[%clk 0:02:52.2]} 4... Be7 {[%clk 0:03:00.5]} 5. d3 {[%clk 0:02:49.4]} 5...
O-O {[%clk 0:03:01.4]} 6. Bf4 {[%clk 0:02:49.3]} 6... c5 {[%clk 0:02:58.1]} 7.
e4 {[%clk 0:02:48.9]} 7... dxe4 {[%clk 0:02:46.9]} 8. dxe4 {[%clk 0:02:49]} 8...
Nc6 {[%clk 0:02:40.3]} 9. Qe2 {[%clk 0:02:37.2]} 9... Qb6 {[%clk 0:02:11.9]} 10.
c3 {[%clk 0:02:31.9]} 10... Bd7 {[%clk 0:02:09.5]} 11. Na3 {[%clk 0:02:28.2]}
11... Rfd8 {[%clk 0:02:08.8]} 12. Rfe1 {[%clk 0:02:14.8]} 12... Be8 {[%clk
0:02:08.3]} 13. h4 {[%clk 0:02:08.3]} 13... Rd7 {[%clk 0:01:38.3]} 14. Nc4
{[%clk 0:02:03.5]} 14... Qa6 {[%clk 0:01:38.1]} 15. Nce5 {[%clk 0:02:00.8]}
15... Qxe2 {[%clk 0:01:37.1]} 16. Rxe2 {[%clk 0:02:01.7]} 16... Nxe5 {[%clk
0:01:36.5]} 17. Nxe5 {[%clk 0:02:02.6]} 17... Rdd8 {[%clk 0:01:36.2]} 18. a4
{[%clk 0:02:02.9]} 18... b6 {[%clk 0:01:16.5]} 19. Ree1 {[%clk 0:01:55.8]} 19...
h6 {[%clk 0:01:13]} 20. Bf1 {[%clk 0:01:55.5]} 20... Bd6 {[%clk 0:01:11.5]} 21.
Bb5 {[%clk 0:01:43.7]} 21... g5 {[%clk 0:01:00.8]} 22. hxg5 {[%clk 0:01:19.9]}
22... hxg5 {[%clk 0:01:00.3]} 23. Bxg5 {[%clk 0:01:08.5]} 23... Bxe5 {[%clk
0:01:00.4]} 24. f4 {[%clk 0:01:09.1]} 24... Bxb5 {[%clk 0:00:38.6]} 25. axb5
{[%clk 0:01:08.5]} 25... Rd3 {[%clk 0:00:31.3]} 26. fxe5 {[%clk 0:01:06.6]}
26... Rxg3+ {[%clk 0:00:30.2]} 27. Kh2 {[%clk 0:00:50.5]} 27... Rxg5 {[%clk
0:00:28.5]} 28. exf6 {[%clk 0:00:49.7]} 28... Kh7 {[%clk 0:00:28.7]} 29. Rg1
{[%clk 0:00:46]} 29... Kg6 {[%clk 0:00:27.1]} 30. Rxg5+ {[%clk 0:00:42.5]} 30...
Kxg5 {[%clk 0:00:28]} 31. Kg3 {[%clk 0:00:40.8]} 31... Kxf6 {[%clk 0:00:26.8]}
32. Kf4 {[%clk 0:00:41.5]} 32... e5+ {[%clk 0:00:24]} 33. Kg4 {[%clk 0:00:40.3]}
33... Ke6 {[%clk 0:00:21.9]} 34. Kg5 {[%clk 0:00:33.3]} 34... f6+ {[%clk
0:00:19.7]} 35. Kg6 {[%clk 0:00:33.4]} 35... Rg8+ {[%clk 0:00:16.9]} 36. Kh7
{[%clk 0:00:33.4]} 36... Rg2 {[%clk 0:00:14.4]} 37. Rxa7 {[%clk 0:00:29.6]}
37... Rxb2 {[%clk 0:00:14.3]} 38. c4 {[%clk 0:00:30.3]} 38... Rb4 {[%clk
0:00:14.2]} 39. Rb7 {[%clk 0:00:29]} 39... Rxc4 {[%clk 0:00:14.6]} 40. Rxb6+
{[%clk 0:00:29.4]} 40... Kf7 {[%clk 0:00:15.2]} 41. Rb7+ {[%clk 0:00:29.7]}
41... Ke6 {[%clk 0:00:15.6]} 42. Rb6+ {[%clk 0:00:25.8]} 42... Kf7 {[%clk
0:00:15.5]} 43. Rb7+ {[%clk 0:00:23.8]} 43... Ke6 {[%clk 0:00:15.7]} 44. Rb6+
{[%clk 0:00:18.6]} 1/2-1/2

[Event "Early-Titled-Tuesday-Blitz-May-28-2024"]
[Site "Chess.com"]
[Date "2024.05.28"]
[Round "2"]
[White "noblerone"]
[Black "kekic76"]
[Result "0-1"]
[WhiteElo "2534"]
[BlackElo "2351"]
[TimeControl "180+1"]
[EndTime "8:18:42 PDT"]
[Termination "kekic76 won on time"]

1. d4 {[%clk 0:02:54.1]} 1... d5 {[%clk 0:02:59.3]} 2. Nf3 {[%clk 0:02:53.3]}
2... Nf6 {[%clk 0:02:55.7]} 3. Bg5 {[%clk 0:02:52.3]} 3... e6 {[%clk 0:02:54.7]}
4. Nbd2 {[%clk 0:02:51.2]} 4... Be7 {[%clk 0:02:54.5]} 5. e3 {[%clk 0:02:48]}
5... h6 {[%clk 0:02:47.3]} 6. Bh4 {[%clk 0:02:47.4]} 6... O-O {[%clk 0:02:46.3]}
7. Bd3 {[%clk 0:02:46.2]} 7... Nbd7 {[%clk 0:02:43.8]} 8. O-O {[%clk 0:02:44.5]}
8... b6 {[%clk 0:02:43.6]} 9. c3 {[%clk 0:02:44.4]} 9... Bb7 {[%clk 0:02:43.8]}
10. a4 {[%clk 0:02:43.7]} 10... c5 {[%clk 0:02:43.7]} 11. Ne5 {[%clk 0:02:43.6]}
11... cxd4 {[%clk 0:02:11.8]} 12. cxd4 {[%clk 0:02:16.8]} 12... Nxe5 {[%clk
0:02:08.3]} 13. dxe5 {[%clk 0:02:16.5]} 13... Nd7 {[%clk 0:02:08.9]} 14. Bxe7
{[%clk 0:02:13]} 14... Qxe7 {[%clk 0:02:08.2]} 15. Nf3 {[%clk 0:01:37.1]} 15...
Nc5 {[%clk 0:01:57]} 16. Bc2 {[%clk 0:01:35.5]} 16... Ne4 {[%clk 0:01:16.1]} 17.
Nd4 {[%clk 0:01:15.4]} 17... Rac8 {[%clk 0:01:05.4]} 18. Bd3 {[%clk 0:01:10.2]}
18... Qc7 {[%clk 0:00:43.2]} 19. f4 {[%clk 0:00:50]} 19... a6 {[%clk 0:00:26.2]}
20. Qe2 {[%clk 0:00:45.7]} 20... a5 {[%clk 0:00:24.1]} 21. Rfd1 {[%clk
0:00:22.6]} 21... Nc5 {[%clk 0:00:09]} 22. Bc2 {[%clk 0:00:20.6]} 22... Ne4
{[%clk 0:00:08.1]} 23. Rac1 {[%clk 0:00:20.8]} 23... Qe7 {[%clk 0:00:07.6]} 24.
Nb5 {[%clk 0:00:18.1]} 24... Qb4 {[%clk 0:00:05.7]} 25. Bxe4 {[%clk 0:00:09.6]}
25... dxe4 {[%clk 0:00:06]} 26. Rxc8 {[%clk 0:00:04.6]} 26... Rxc8 {[%clk
0:00:05]} 27. Nd6 {[%clk 0:00:05.1]} 27... Rb8 {[%clk 0:00:04.7]} 28. Rd4 {[%clk
0:00:01.9]} 28... Qb3 {[%clk 0:00:02.6]} 0-1

[Event "Early-Titled-Tuesday-Blitz-May-28-2024"]
[Site "Chess.com"]
[Date "2024.05.28"]
[Round "2"]
[White "maximnovik"]
[Black "carloseduar100"]
[Result "1-0"]
[WhiteElo "2529"]
[BlackElo "2307"]
[TimeControl "180+1"]
[EndTime "8:18:44 PDT"]
[Termination "maximnovik won on time"]

1. e4 {[%clk 0:02:47]} 1... e6 {[%clk 0:02:56.1]} 2. d4 {[%clk 0:02:46.8]} 2...
d5 {[%clk 0:02:56.9]} 3. e5 {[%clk 0:02:47.2]} 3... c5 {[%clk 0:02:56.9]} 4. c3
{[%clk 0:02:47.7]} 4... Nc6 {[%clk 0:02:57.4]} 5. Nf3 {[%clk 0:02:48.2]} 5...
Qb6 {[%clk 0:02:57]} 6. Bd3 {[%clk 0:02:47.8]} 6... Bd7 {[%clk 0:02:56.8]} 7.
O-O {[%clk 0:02:45.5]} 7... cxd4 {[%clk 0:02:55.9]} 8. Re1 {[%clk 0:02:45.7]}
8... g6 {[%clk 0:02:54.3]} 9. Nbd2 {[%clk 0:02:42.1]} 9... Bg7 {[%clk 0:02:54]}
10. Nb3 {[%clk 0:02:35.9]} 10... dxc3 {[%clk 0:02:52.9]} 11. bxc3 {[%clk
0:02:36.1]} 11... Nge7 {[%clk 0:02:51.5]} 12. h4 {[%clk 0:02:23.2]} 12... h5
{[%clk 0:02:44.3]} 13. Ba3 {[%clk 0:02:20.9]} 13... O-O {[%clk 0:02:33.1]} 14.
Rb1 {[%clk 0:02:21]} 14... Qd8 {[%clk 0:02:15.7]} 15. Nbd4 {[%clk 0:02:09.7]}
15... b6 {[%clk 0:02:06.6]} 16. Qd2 {[%clk 0:02:05.7]} 16... Rc8 {[%clk
0:01:56.5]} 17. Qf4 {[%clk 0:02:05.3]} 17... Na5 {[%clk 0:01:49.2]} 18. Bb4
{[%clk 0:01:52.3]} 18... Nc4 {[%clk 0:01:47.3]} 19. Nh2 {[%clk 0:01:27.7]} 19...
a5 {[%clk 0:01:12.8]} 20. Bxc4 {[%clk 0:01:26.8]} 20... axb4 {[%clk 0:01:05.7]}
21. Ba6 {[%clk 0:01:21.5]} 21... Rxc3 {[%clk 0:00:53.6]} 22. g4 {[%clk
0:01:21.7]} 22... Nc6 {[%clk 0:00:36.4]} 23. Nxc6 {[%clk 0:01:10.9]} 23... Bxc6
{[%clk 0:00:34.5]} 24. gxh5 {[%clk 0:01:11.2]} 24... Rh3 {[%clk 0:00:29]} 25.
Rxb4 {[%clk 0:00:26.8]} 25... Qe7 {[%clk 0:00:19.1]} 26. Bf1 {[%clk 0:00:25.7]}
26... Rxh2 {[%clk 0:00:16.3]} 27. Kxh2 {[%clk 0:00:25.7]} 27... Ra8 {[%clk
0:00:15.9]} 28. a4 {[%clk 0:00:24.6]} 28... gxh5 {[%clk 0:00:14.8]} 29. Bd3
{[%clk 0:00:24.5]} 29... Kf8 {[%clk 0:00:15.1]} 30. Rg1 {[%clk 0:00:24.6]} 30...
Ra7 {[%clk 0:00:08.5]} 31. Qg3 {[%clk 0:00:24.5]} 31... f6 {[%clk 0:00:08.8]}
32. exf6 {[%clk 0:00:24.3]} 32... Qxf6 {[%clk 0:00:08.8]} 33. Qd6+ {[%clk
0:00:24.1]} 33... Kg8 {[%clk 0:00:07.1]} 34. Rf4 {[%clk 0:00:23.5]} 1-0

[Event "Early-Titled-Tuesday-Blitz-May-28-2024"]
[Site "Chess.com"]
[Date "2024.05.28"]
[Round "2"]
[White "Maluco_do_Natal_00"]
[Black "InitiatingASC"]
[Result "1/2-1/2"]
[WhiteElo "2043"]
[BlackElo "2437"]
[TimeControl "180+1"]
[EndTime "8:18:45 PDT"]
[Termination "Game drawn by repetition"]

1. e4 {[%clk 0:03:00.9]} 1... e5 {[%clk 0:02:59.1]} 2. Nf3 {[%clk 0:03:01.1]}
2... Nf6 {[%clk 0:02:59]} 3. Nxe5 {[%clk 0:03:00.5]} 3... d6 {[%clk 0:02:59.3]}
4. Nf3 {[%clk 0:03:00.3]} 4... Nxe4 {[%clk 0:02:59.6]} 5. Nc3 {[%clk 0:03:00.8]}
5... Nxc3 {[%clk 0:02:59.2]} 6. dxc3 {[%clk 0:03:01.6]} 6... Be7 {[%clk
0:02:58.6]} 7. Bd3 {[%clk 0:03:02]} 7... Be6 {[%clk 0:02:54]} 8. Be3 {[%clk
0:02:59.6]} 8... Nd7 {[%clk 0:02:54.3]} 9. Qd2 {[%clk 0:02:45.3]} 9... Ne5
{[%clk 0:02:54.6]} 10. Nxe5 {[%clk 0:02:30.9]} 10... dxe5 {[%clk 0:02:55.5]} 11.
O-O {[%clk 0:02:20]} 11... O-O {[%clk 0:02:53.3]} 12. Rad1 {[%clk 0:02:15]}
12... f5 {[%clk 0:02:49]} 13. f3 {[%clk 0:02:06.5]} 13... Qe8 {[%clk 0:02:36.6]}
14. Bf2 {[%clk 0:01:49.3]} 14... Rd8 {[%clk 0:02:34]} 15. Qe2 {[%clk 0:01:48.9]}
15... Bf6 {[%clk 0:02:24.7]} 16. Bc4 {[%clk 0:01:47.4]} 16... Qc6 {[%clk
0:02:15.4]} 17. Bxe6+ {[%clk 0:01:40.6]} 17... Qxe6 {[%clk 0:02:16.3]} 18. b3
{[%clk 0:01:40.5]} 18... a6 {[%clk 0:02:08.7]} 19. c4 {[%clk 0:01:40.4]} 19...
h6 {[%clk 0:01:54.4]} 20. Rfe1 {[%clk 0:01:39.9]} 20... Kh7 {[%clk 0:01:52.2]}
21. Bg3 {[%clk 0:01:39.1]} 21... Qb6+ {[%clk 0:01:27]} 22. Bf2 {[%clk
0:01:36.8]} 22... Qa5 {[%clk 0:01:24.8]} 23. a4 {[%clk 0:01:34.1]} 23... Rfe8
{[%clk 0:01:21]} 24. Rd3 {[%clk 0:01:18.3]} 24... Rxd3 {[%clk 0:01:10.1]} 25.
Qxd3 {[%clk 0:01:13.8]} 25... e4 {[%clk 0:01:05.3]} 26. fxe4 {[%clk 0:01:11.5]}
26... Kh8 {[%clk 0:00:53.7]} 27. Kf1 {[%clk 0:00:55.6]} 27... f4 {[%clk
0:00:41.7]} 28. h3 {[%clk 0:00:19.8]} 28... Rd8 {[%clk 0:00:31.5]} 29. Qf3
{[%clk 0:00:18.7]} 29... Be5 {[%clk 0:00:28.7]} 30. Bh4 {[%clk 0:00:17.5]} 30...
Rd2 {[%clk 0:00:23.1]} 31. Qh5 {[%clk 0:00:14.7]} 31... Qc5 {[%clk 0:00:13.3]}
32. Qe8+ {[%clk 0:00:12.4]} 32... Kh7 {[%clk 0:00:13.3]} 33. Qh5 {[%clk
0:00:10.3]} 33... Rxc2 {[%clk 0:00:11.8]} 34. Qf5+ {[%clk 0:00:09.6]} 34... Kg8
{[%clk 0:00:11.7]} 35. Qc8+ {[%clk 0:00:08]} 35... Kf7 {[%clk 0:00:07.2]} 36.
Qf5+ {[%clk 0:00:07.7]} 36... Kg8 {[%clk 0:00:07.6]} 37. Qe6+ {[%clk 0:00:07.4]}
37... Kh7 {[%clk 0:00:06.7]} 38. Qf5+ {[%clk 0:00:07.5]} 38... Kg8 {[%clk
0:00:07.3]} 1/2-1/2

[Event "Early-Titled-Tuesday-Blitz-May-28-2024"]
[Site "Chess.com"]
[Date "2024.05.28"]
[Round "2"]
[White "Viktoker"]
[Black "Meri-Arabidze"]
[Result "0-1"]
[WhiteElo "2396"]
[BlackElo "2683"]
[TimeControl "180+1"]
[EndTime "8:18:46 PDT"]
[Termination "Meri-Arabidze won on time"]

1. d4 {[%clk 0:02:53.4]} 1... Nf6 {[%clk 0:02:59.7]} 2. Bf4 {[%clk 0:02:49.4]}
2... e6 {[%clk 0:03:00]} 3. e3 {[%clk 0:02:45.7]} 3... b6 {[%clk 0:02:59.8]} 4.
Qf3 {[%clk 0:02:44]} 4... d5 {[%clk 0:02:58.5]} 5. Nc3 {[%clk 0:02:43.1]} 5...
Bd6 {[%clk 0:02:57.4]} 6. O-O-O {[%clk 0:02:41.5]} 6... Bb7 {[%clk 0:02:55]} 7.
g4 {[%clk 0:02:38.8]} 7... Nbd7 {[%clk 0:02:47.9]} 8. Bd3 {[%clk 0:02:28]} 8...
Bxf4 {[%clk 0:02:39.7]} 9. exf4 {[%clk 0:02:21.5]} 9... g6 {[%clk 0:02:30.9]}
10. Nge2 {[%clk 0:02:12.9]} 10... Qe7 {[%clk 0:02:28.3]} 11. Ng3 {[%clk
0:02:07.9]} 11... O-O-O {[%clk 0:02:28.5]} 12. Rhe1 {[%clk 0:02:06.3]} 12... Qb4
{[%clk 0:02:16.7]} 13. a3 {[%clk 0:01:45.1]} 13... Qf8 {[%clk 0:02:16.3]} 14. h3
{[%clk 0:01:41.4]} 14... Kb8 {[%clk 0:02:14.4]} 15. Qe2 {[%clk 0:01:40.8]} 15...
Ne8 {[%clk 0:02:08.7]} 16. Kb1 {[%clk 0:01:36.9]} 16... Nd6 {[%clk 0:02:08.9]}
17. Ba6 {[%clk 0:01:32.9]} 17... Nf6 {[%clk 0:01:58.6]} 18. Bxb7 {[%clk
0:01:31.2]} 18... Kxb7 {[%clk 0:01:59.5]} 19. b3 {[%clk 0:01:23.3]} 19... h5
{[%clk 0:01:59.1]} 20. g5 {[%clk 0:01:22.7]} 20... Ng8 {[%clk 0:01:56]} 21. Kb2
{[%clk 0:01:22.3]} 21... Ne7 {[%clk 0:01:56.2]} 22. a4 {[%clk 0:01:20.4]} 22...
a5 {[%clk 0:01:52.9]} 23. Nb5 {[%clk 0:01:17.3]} 23... h4 {[%clk 0:01:49.6]} 24.
Nf1 {[%clk 0:01:16]} 24... Nef5 {[%clk 0:01:47.3]} 25. Ne3 {[%clk 0:01:12.9]}
25... Nxb5 {[%clk 0:01:45.8]} 26. Qxb5 {[%clk 0:01:06.3]} 26... Nd6 {[%clk
0:01:43.7]} 27. Qe2 {[%clk 0:01:03.7]} 27... Qe8 {[%clk 0:01:39.9]} 28. Ng4
{[%clk 0:01:02.3]} 28... Nf5 {[%clk 0:01:31.5]} 29. Qe5 {[%clk 0:00:57.4]} 29...
Rc8 {[%clk 0:01:24.2]} 30. Nf6 {[%clk 0:00:47.3]} 30... Qd8 {[%clk 0:01:23]} 31.
c4 {[%clk 0:00:43.2]} 31... dxc4 {[%clk 0:01:17.3]} 32. d5 {[%clk 0:00:43.3]}
32... Qd6 {[%clk 0:01:03.7]} 33. dxe6 {[%clk 0:00:35.6]} 33... Qxe5+ {[%clk
0:00:53.8]} 34. Rxe5 {[%clk 0:00:34.6]} 34... fxe6 {[%clk 0:00:54]} 35. bxc4
{[%clk 0:00:31.7]} 35... Nd6 {[%clk 0:00:52.8]} 36. Kc3 {[%clk 0:00:29.2]} 36...
Rcd8 {[%clk 0:00:49]} 37. Rde1 {[%clk 0:00:26.7]} 37... Nf5 {[%clk 0:00:42.8]}
38. Rxe6 {[%clk 0:00:20.7]} 38... Rd4 {[%clk 0:00:43]} 39. Nd5 {[%clk
0:00:18.6]} 39... c6 {[%clk 0:00:38]} 40. Re7+ {[%clk 0:00:15.8]} 40... Kb8
{[%clk 0:00:32]} 41. Rf7 {[%clk 0:00:06.6]} 41... cxd5 {[%clk 0:00:29.1]} 42.
Rxf5 {[%clk 0:00:06.8]} 42... Rxc4+ {[%clk 0:00:29.7]} 43. Kd3 {[%clk
0:00:06.8]} 43... gxf5 {[%clk 0:00:30.2]} 0-1